fUST/lending_fUST_20250220
["ID","MTS","AMOUNT","RATE_DAILY","PERIOD"]
[353727775,1739998268172,-826.72,0.0001526,2]
[353727776,1739998268181,-823.17,0.0001526,2]
[353727777,1739998268190,-974.98,0.0001526,2]
[353727778,1739998268200,-500.0,0.0001526,2]
[353727779,1739998268210,-2651.57,0.0001526,2]
[353727780,1739998268219,-530.92,0.0001526,2]
[353727781,1739998268230,-345.93563414,0.0001526,2]
[353727782,1739998268239,-605.78,0.0001526,2]
[353727783,1739998268248,-960.62,0.0001526,2]
[353727784,1739998268258,-520.47,0.0001526,2]
[353727785,1739998268267,-514.43,0.0001526,2]
[353727786,1739998268276,-500.0,0.0001526,2]
[353727787,1739998268285,-556.45,0.0001526,2]
[353727788,1739998268294,-2343.02,0.0001526,2]
[353727789,1739998268305,-5829.82,0.0001526,2]
[353727790,1739998268315,-2086.58,0.0001526,2]
[353727791,1739998268325,-941.7,0.0001526,2]
[353727793,1739998268335,-1298.13,0.0001526,2]
[353727794,1739998268344,-895.31,0.0001526,2]
[353727795,1739998268353,-1140.92,0.0001526,2]
[353727797,1739998268363,-2373.44,0.0001526,2]
[353727799,1739998268372,-2076.26797942,0.0001526,2]
[353727800,1739998268384,-23512.58202058,0.0001526,2]
[353727802,1739998268394,-500.0,0.0001526,2]
[353727804,1739998268403,-1098.92,0.0001526,2]
[353727805,1739998268412,-642.51,0.0001526,2]
[353727806,1739998268422,-11131.15,0.0001526,2]
[353727807,1739998268431,-1481.01,0.0001526,2]
[353727808,1739998268440,-2331.82,0.0001526,2]
[353727809,1739998268449,-840.9,0.0001526,2]
[353727810,1739998268462,-1405.2,0.0001526,2]
[353727811,1739998268471,-1355.31,0.0001526,2]
[353727812,1739998268480,-2081.89,0.0001526,2]
[353727813,1739998268490,-1273.09,0.0001526,2]
[353727814,1739998268499,-3658.91,0.0001526,2]
[353727815,1739998268606,-1053.16,0.0001526,2]
[353727816,1739998268615,-559.97,0.0001526,2]
[353727817,1739998268625,-558.31,0.0001526,2]
[353727818,1739998268634,-500.0,0.0001526,2]
[353727819,1739998268644,-2610.53,0.0001526,2]
[353727820,1739998268654,-1417.44,0.0001526,2]
[353727821,1739998268663,-1045.6,0.0001526,2]
[353727822,1739998268672,-1307.94,0.0001526,2]
[353727823,1739998268682,-566.15182201,0.00015322,2]
[353727824,1739998268692,-1500.0,0.00015322,2]
[353727825,1739998268701,-1501.30101814,0.00015322,2]
[353727826,1739998268711,-1097.04980234,0.00015322,2]
[353727827,1739998268720,-665.25175723,0.00015322,2]
[353727828,1739998268730,-509.18,0.00015342,2]
[353727829,1739998268739,-735.72,0.00015342,2]
[353727830,1739998268749,-503.31,0.00015342,2]
[353727831,1739998268759,-500.0,0.00015342,2]
[353727832,1739998268769,-532.29,0.00015342,2]
[353727833,1739998268779,-770.11,0.00015342,2]
[353727834,1739998268789,-500.0,0.00015342,2]
[353727835,1739998268798,-724.13,0.00015342,2]
[353727836,1739998268808,-500.0,0.00015342,2]
[353727837,1739998268817,-686.46,0.00015342,2]
[353727838,1739998268827,-8858.9,0.00015342,2]
[353727839,1739998268836,-584.99,0.00015342,2]
[353727840,1739998268846,-826.72,0.00015342,2]
[353727841,1739998268856,-823.17,0.00015342,2]
[353727842,1739998268866,-974.98,0.00015342,2]
[353727843,1739998268876,-500.0,0.00015342,2]
[353727844,1739998268890,-2651.57,0.00015342,2]
[353727845,1739998268900,-530.92,0.00015342,2]
[353727846,1739998268910,-605.78,0.00015342,2]
[353727847,1739998268919,-960.62,0.00015342,2]
[353727848,1739998268930,-520.47,0.00015342,2]
[353727849,1739998268939,-514.43,0.00015342,2]
[353727850,1739998268948,-581.86088215,0.00015342,2]
[353727851,1739998268961,-556.45,0.00015342,2]
[353727852,1739998268972,-2343.02,0.00015342,2]
[353727853,1739998268982,-5829.82,0.00015342,2]
[353727854,1739998268991,-2086.58,0.00015342,2]
[353727855,1739998269001,-941.7,0.00015342,2]
[353727856,1739998269011,-1298.13,0.00015342,2]
[353727857,1739998269019,-895.31,0.00015342,2]
[353727858,1739998269029,-1140.92,0.00015342,2]
[353727859,1739998269038,-2373.44,0.00015342,2]
[353727860,1739998269048,-25588.85,0.00015342,2]
[353727861,1739998269057,-500.0,0.00015342,2]
[353727862,1739998269067,-1098.92,0.00015342,2]
[353727863,1739998269076,-642.51,0.00015342,2]
[353727864,1739998269085,-11131.15,0.00015342,2]
[353727865,1739998269095,-1481.01,0.00015342,2]
[353727866,1739998269104,-2331.82,0.00015342,2]
[353727867,1739998269114,-840.9,0.00015342,2]
[353727868,1739998269124,-1405.2,0.00015342,2]
[353727869,1739998269133,-1355.31,0.00015342,2]
[353727870,1739998269143,-2081.89,0.00015342,2]
[353727871,1739998269153,-1273.09,0.00015342,2]
[353727872,1739998269162,-3658.91,0.00015342,2]
[353727873,1739998269172,-1053.16,0.00015342,2]
[353727874,1739998269181,-559.97,0.00015342,2]
[353727875,1739998269191,-558.31,0.00015342,2]
[353727876,1739998269200,-364.62900794,0.00015342,2]
[353727877,1739998269211,-2610.53,0.00015342,2]
[353727878,1739998269221,-1417.44,0.00015342,2]
[353727879,1739998269230,-1045.6,0.00015342,2]
[353727880,1739998269240,-1307.94,0.00015342,2]
[353727881,1739998269249,-849.23964302,0.00015347,2]
[353727882,1739998269261,-1150.76035698,0.00015347,2]
[353727883,1739998269271,-509.18,0.00015424,2]
[353727884,1739998269282,-735.72,0.00015424,2]
[353727885,1739998269292,-503.31,0.00015424,2]
[353727886,1739998269302,-562.66205564,0.00015424,2]
[353727887,1739998269311,-532.29,0.00015424,2]
[353727888,1739998269321,-770.11,0.00015424,2]
[353727890,1739998269331,-309.17377795,0.00015424,2]
[353727892,1739998269341,-724.13,0.00015424,2]
[353727894,1739998269350,-417.6237776,0.00015424,2]
[353727896,1739998269359,-686.46,0.00015424,2]
[353727898,1739998269370,-8858.9,0.00015424,2]
[353727900,1739998269380,-584.99,0.00015424,2]
[353727902,1739998269389,-826.72,0.00015424,2]
[353727904,1739998269399,-823.17,0.00015424,2]
[353727906,1739998269408,-974.98,0.00015424,2]
[353727908,1739998269418,-319.25468152,0.00015424,2]
[353727910,1739998269428,-2651.57,0.00015424,2]
[353727912,1739998269437,-530.92,0.00015424,2]
[353727914,1739998269447,-605.78,0.00015424,2]
[353727916,1739998269458,-960.62,0.00015424,2]
[353727918,1739998269467,-520.47,0.00015424,2]
[353727920,1739998269476,-514.43,0.00015424,2]
[353727922,1739998269486,-556.45,0.00015424,2]
[353727924,1739998269496,-2343.02,0.00015424,2]
[353727926,1739998269506,-5829.82,0.00015424,2]
[353727928,1739998269515,-2086.58,0.00015424,2]
[353727930,1739998269525,-941.7,0.00015424,2]
[353727932,1739998269536,-1298.13,0.00015424,2]
[353727934,1739998269546,-895.31,0.00015424,2]
[353727936,1739998269555,-1140.92,0.00015424,2]
[353727938,1739998269564,-2373.44,0.00015424,2]
[353727940,1739998269573,-25588.85,0.00015424,2]
[353727942,1739998269583,-500.0,0.00015424,2]
[353727944,1739998269592,-1098.92,0.00015424,2]
[353727946,1739998269602,-642.51,0.00015424,2]
[353727948,1739998269612,-11131.15,0.00015424,2]
[353727950,1739998269622,-1481.01,0.00015424,2]
[353727952,1739998269632,-2331.82,0.00015424,2]
[353727953,1739998269642,-840.9,0.00015424,2]
[353727956,1739998269652,-1405.2,0.00015424,2]
[353727957,1739998269662,-1355.31,0.00015424,2]
[353727959,1739998269672,-2081.89,0.00015424,2]
[353727961,1739998269681,-1273.09,0.00015424,2]
[353727963,1739998269691,-3658.91,0.00015424,2]
[353727966,1739998269702,-1053.16,0.00015424,2]
[353727967,1739998269711,-559.97,0.00015424,2]
[353727969,1739998269720,-558.31,0.00015424,2]
[353727971,1739998269730,-2610.53,0.00015424,2]
[353727973,1739998269739,-1417.44,0.00015424,2]
[353727975,1739998269749,-1045.6,0.00015424,2]
[353727977,1739998269759,-1307.94,0.00015424,2]
[353727979,1739998269768,-509.18,0.00015506,2]
[353727981,1739998269778,-735.72,0.00015506,2]
[353727983,1739998269788,-503.31,0.00015506,2]
[353727985,1739998269797,-532.29,0.00015506,2]
[353727987,1739998269807,-770.11,0.00015506,2]
[353727989,1739998269816,-724.13,0.00015506,2]
[353727992,1739998269827,-686.46,0.00015506,2]
[353727993,1739998269837,-8858.9,0.00015506,2]
[353727995,1739998269847,-584.99,0.00015506,2]
[353727997,1739998269856,-826.72,0.00015506,2]
[353727999,1739998269866,-823.17,0.00015506,2]
[353728001,1739998269876,-974.98,0.00015506,2]
[353728003,1739998269886,-2651.57,0.00015506,2]
[353728005,1739998269899,-530.92,0.00015506,2]
[353728006,1739998269909,-605.78,0.00015506,2]
[353728007,1739998269919,-960.62,0.00015506,2]
[353728008,1739998269929,-520.47,0.00015506,2]
[353728009,1739998269939,-514.43,0.00015506,2]
[353728010,1739998269949,-556.45,0.00015506,2]
[353728011,1739998269961,-2343.02,0.00015506,2]
[353728012,1739998269972,-5829.82,0.00015506,2]
[353728013,1739998269981,-2086.58,0.00015506,2]
[353728014,1739998269991,-941.7,0.00015506,2]
[353728015,1739998270000,-1298.13,0.00015506,2]
[353728016,1739998270009,-895.31,0.00015506,2]
[353728017,1739998270019,-1140.92,0.00015506,2]
[353728018,1739998270028,-2373.44,0.00015506,2]
[353728019,1739998270038,-25588.85,0.00015506,2]
[353728020,1739998270048,-500.0,0.00015506,2]
[353728021,1739998270057,-1098.92,0.00015506,2]
[353728023,1739998270067,-642.51,0.00015506,2]
[353728025,1739998270077,-11131.15,0.00015506,2]
[353728027,1739998270087,-1481.01,0.00015506,2]
[353728029,1739998270096,-2331.82,0.00015506,2]
[353728031,1739998270106,-840.9,0.00015506,2]
[353728034,1739998270115,-1405.2,0.00015506,2]
[353728036,1739998270125,-1355.31,0.00015506,2]
[353728037,1739998270133,-2081.89,0.00015506,2]
[353728038,1739998270142,-1273.09,0.00015506,2]
[353728040,1739998270151,-3658.91,0.00015506,2]
[353728042,1739998270161,-1053.16,0.00015506,2]
[353728043,1739998270170,-559.97,0.00015506,2]
[353728045,1739998270179,-558.31,0.00015506,2]
[353728047,1739998270188,-2610.53,0.00015506,2]
[353728049,1739998270198,-1417.44,0.00015506,2]
[353728051,1739998270208,-1045.6,0.00015506,2]
[353728053,1739998270217,-1307.94,0.00015506,2]
[353728054,1739998270227,-600.0,0.00015534,2]
[353728055,1739998270237,-509.26055816,0.00015589,2]
[353728056,1739998270247,-735.84,0.00015589,2]
[353728057,1739998270256,-503.34336994,0.00015589,2]
[353728058,1739998270266,-532.39493557,0.00015589,2]
[353728059,1739998270276,-770.21229704,0.00015589,2]
[353728060,1739998270285,-724.35,0.00015589,2]
[353728061,1739998270296,-686.58,0.00015589,2]
[353728062,1739998270306,-8858.98589072,0.00015589,2]
[353728063,1739998270315,-585.09,0.00015589,2]
[353728064,1739998270324,-826.89100684,0.00015589,2]
[353728065,1739998270333,-823.27641406,0.00015589,2]
[353728066,1739998270343,-975.08632677,0.00015589,2]
[353728067,1739998270353,-2651.76,0.00015589,2]
[353728068,1739998270363,-531.12,0.00015589,2]
[353728069,1739998270373,-605.88,0.00015589,2]
[353728070,1739998270383,-960.64,0.00015589,2]
[353728071,1739998270393,-520.7049384,0.00015589,2]
[353728072,1739998270403,-514.62,0.00015589,2]
[353728073,1739998270413,-556.65486826,0.00015589,2]
[353728074,1739998270423,-2343.04,0.00015589,2]
[353728075,1739998270433,-5829.96,0.00015589,2]
[353728076,1739998270444,-2086.78,0.00015589,2]
[353728077,1739998270454,-941.93716264,0.00015589,2]
[353728078,1739998270465,-1298.29799085,0.00015589,2]
[353728079,1739998270475,-895.32546464,0.00015589,2]
[353728080,1739998270484,-1141.0971738,0.00015589,2]
[353728081,1739998270493,-2373.61225558,0.00015589,2]
[353728082,1739998270503,-25588.99662734,0.00015589,2]
[353728083,1739998270512,-191.39475227,0.00015589,2]
[353728084,1739998270522,-1099.03188345,0.00015589,2]
[353728085,1739998270532,-642.63,0.00015589,2]
[353728086,1739998270541,-11131.25111286,0.00015589,2]
[353728087,1739998270551,-1481.06663562,0.00015589,2]
[353728088,1739998270561,-2331.89110362,0.00015589,2]
[353728089,1739998270571,-841.0457394,0.00015589,2]
[353728090,1739998270580,-1405.3,0.00015589,2]
[353728091,1739998270589,-1355.52,0.00015589,2]
[353728092,1739998270599,-2082.04947542,0.00015589,2]
[353728093,1739998270609,-1273.29244067,0.00015589,2]
[353728094,1739998270619,-3659.02070958,0.00015589,2]
[353728095,1739998270629,-1053.23,0.00015589,2]
[353728096,1739998270639,-560.12384719,0.00015589,2]
[353728097,1739998270648,-558.42,0.00015589,2]
[353728098,1739998270657,-2610.69048065,0.00015589,2]
[353728099,1739998270667,-1417.52453366,0.00015589,2]
[353728100,1739998270677,-1045.65222728,0.00015589,2]
[353728101,1739998270686,-1308.12,0.00015589,2]
[353728102,1739998270696,-465.09871366,0.00015759,2]
[353728103,1739998270706,-164.29062,0.00015775,2]
[353728104,1739998270809,-1120.28347369,0.00015832,2]
[353728105,1739998270819,-167.17528665,0.00015897,2]
[353728106,1739998270830,-499.0,0.00016164,2]
[353728107,1739998270840,-586.0,0.00016169,2]
[353728108,1739998270850,-586.0,0.00016169,2]
[353728109,1739998270860,-586.0,0.00016169,2]
[353728110,1739998270870,-586.0,0.00016169,2]
[353728111,1739998270881,-586.0,0.00016169,2]
[353728112,1739998270893,-586.0,0.00016169,2]
[353728113,1739998270903,-586.0,0.00016169,2]
[353728114,1739998270913,-586.0,0.00016169,2]
[353728115,1739998270924,-586.0,0.00016169,2]
[353728116,1739998270932,-586.0,0.00016169,2]
[353728117,1739998270940,-586.0,0.00016169,2]
[353728118,1739998270949,-586.0,0.00016169,2]
[353728119,1739998270960,-586.0,0.00016169,2]
[353728120,1739998270972,-586.0,0.00016169,2]
[353728121,1739998270981,-586.0,0.00016169,2]
[353728122,1739998270988,-586.0,0.00016169,2]
[353728123,1739998270997,-586.0,0.00016169,2]
[353728124,1739998271006,-586.0,0.00016169,2]
[353728125,1739998271015,-586.0,0.00016169,2]
[353728126,1739998271024,-586.0,0.00016169,2]
[353728127,1739998271033,-586.0,0.00016169,2]
[353728128,1739998271042,-586.0,0.00016169,2]
[353728129,1739998271052,-586.0,0.00016169,2]
[353728130,1739998271061,-586.0,0.00016169,2]
[353728131,1739998271071,-586.0,0.00016169,2]
[353728132,1739998271080,-586.0,0.00016169,2]
[353728133,1739998271090,-586.0,0.00016169,2]
[353728134,1739998271099,-586.0,0.00016169,2]
[353728135,1739998271109,-586.0,0.00016169,2]
[353728136,1739998271119,-586.0,0.00016169,2]
[353728137,1739998271128,-586.0,0.00016169,2]
[353728138,1739998271138,-586.0,0.00016169,2]
[353728139,1739998271147,-586.0,0.00016169,2]
[353728140,1739998271157,-586.0,0.00016169,2]
[353728141,1739998271166,-392.0,0.00016169,2]
[353728142,1739998271176,-392.0,0.00016169,2]
[353728143,1739998271186,-392.0,0.00016169,2]
[353728144,1739998271197,-392.0,0.00016169,2]
[353728145,1739998271207,-392.0,0.00016169,2]
[353728146,1739998271217,-392.0,0.00016169,2]
[353728147,1739998271227,-392.0,0.00016169,2]
[353728148,1739998271236,-392.0,0.00016169,2]
[353728149,1739998271245,-392.0,0.00016169,2]
[353728150,1739998271255,-392.0,0.00016169,2]
[353728151,1739998271265,-392.0,0.00016169,2]
[353728152,1739998271274,-392.0,0.00016169,2]
[353728153,1739998271284,-392.0,0.00016169,2]
[353728154,1739998271294,-392.0,0.00016169,2]
[353728155,1739998271304,-392.0,0.00016169,2]
[353728156,1739998271314,-392.0,0.00016169,2]
[353728157,1739998271324,-392.0,0.00016169,2]
[353728158,1739998271334,-392.0,0.00016169,2]
[353728159,1739998271344,-392.0,0.00016169,2]
[353728160,1739998271354,-392.0,0.00016169,2]
[353728161,1739998271363,-392.0,0.00016169,2]
[353728162,1739998271373,-392.0,0.00016169,2]
[353728163,1739998271383,-392.0,0.00016169,2]
[353728164,1739998271393,-392.0,0.00016169,2]
[353728165,1739998271403,-392.0,0.00016169,2]
[353728166,1739998271412,-392.0,0.00016169,2]
[353728167,1739998271421,-392.0,0.00016169,2]
[353728168,1739998271431,-392.0,0.00016169,2]
[353728169,1739998271441,-392.0,0.00016169,2]
[353728170,1739998271451,-392.0,0.00016169,2]
[353728171,1739998271464,-392.0,0.00016169,2]
[353728172,1739998271474,-392.0,0.00016169,2]
[353728173,1739998271484,-392.0,0.00016169,2]
[353728174,1739998271495,-392.0,0.00016169,2]
[353728175,1739998271505,-392.0,0.00016169,2]
[353728176,1739998271515,-392.0,0.00016169,2]
[353728177,1739998271525,-392.0,0.00016169,2]
[353728178,1739998271534,-392.0,0.00016169,2]
[353728179,1739998271544,-392.0,0.00016169,2]
[353728180,1739998271553,-392.0,0.00016169,2]
[353728181,1739998271564,-625.0,0.00016169,2]
[353728182,1739998271573,-625.0,0.00016169,2]
[353728183,1739998271583,-625.0,0.00016169,2]
[353728184,1739998271593,-625.0,0.00016169,2]
[353728185,1739998271603,-625.0,0.00016169,2]
[353728186,1739998271614,-625.0,0.00016169,2]
[353728187,1739998271624,-625.0,0.00016169,2]
[353728188,1739998271634,-625.0,0.00016169,2]
[353728189,1739998271644,-625.0,0.00016169,2]
[353728190,1739998271654,-625.0,0.00016169,2]
[353728191,1739998271664,-625.0,0.00016169,2]
[353728192,1739998271675,-625.0,0.00016169,2]
[353728193,1739998271686,-625.0,0.00016169,2]
[353728194,1739998271696,-625.0,0.00016169,2]
[353728195,1739998271709,-625.0,0.00016169,2]
[353728196,1739998271718,-625.0,0.00016169,2]
[353728197,1739998271728,-625.0,0.00016169,2]
[353728198,1739998271738,-625.0,0.00016169,2]
[353728199,1739998271748,-625.0,0.00016169,2]
[353728200,1739998271758,-447.0,0.00016169,2]
[353728201,1739998271767,-447.0,0.00016169,2]
[353728202,1739998271777,-447.0,0.00016169,2]
[353728203,1739998271787,-447.0,0.00016169,2]
[353728204,1739998271798,-447.0,0.00016169,2]
[353728205,1739998271808,-447.0,0.00016169,2]
[353728206,1739998271817,-447.0,0.00016169,2]
[353728207,1739998271827,-447.0,0.00016169,2]
[353728208,1739998271836,-447.0,0.00016169,2]
[353728209,1739998271846,-447.0,0.00016169,2]
[353728210,1739998271856,-447.0,0.00016169,2]
[353728211,1739998271866,-447.0,0.00016169,2]
[353728212,1739998271876,-447.0,0.00016169,2]
[353728213,1739998271888,-447.0,0.00016169,2]
[353728214,1739998271899,-447.0,0.00016169,2]
[353728215,1739998271909,-447.0,0.00016169,2]
[353728216,1739998271918,-447.0,0.00016169,2]
[353728217,1739998271929,-447.0,0.00016169,2]
[353728218,1739998271939,-447.0,0.00016169,2]
[353728219,1739998271948,-447.0,0.00016169,2]
[353728220,1739998271959,-447.0,0.00016169,2]
[353728221,1739998271970,-447.0,0.00016169,2]
[353728222,1739998271980,-447.0,0.00016169,2]
[353728223,1739998271991,-447.0,0.00016169,2]
[353728224,1739998272001,-447.0,0.00016169,2]
[353728225,1739998272010,-625.0,0.00016169,2]
[353728226,1739998272020,-625.0,0.00016169,2]
[353728227,1739998272030,-625.0,0.00016169,2]
[353728228,1739998272040,-625.0,0.00016169,2]
[353728229,1739998272051,-625.0,0.00016169,2]
[353728230,1739998272062,-625.0,0.00016169,2]
[353728231,1739998272072,-625.0,0.00016169,2]
[353728232,1739998272082,-625.0,0.00016169,2]
[353728233,1739998272092,-625.0,0.00016169,2]
[353728234,1739998272102,-625.0,0.00016169,2]
[353728235,1739998272112,-625.0,0.00016169,2]
[353728236,1739998272122,-625.0,0.00016169,2]
[353728237,1739998272132,-625.0,0.00016169,2]
[353728238,1739998272143,-625.0,0.00016169,2]
[353728239,1739998272155,-625.0,0.00016169,2]
[353728240,1739998272164,-625.0,0.00016169,2]
[353728241,1739998272173,-447.0,0.00016169,2]
[353728242,1739998272183,-447.0,0.00016169,2]
[353728243,1739998272193,-447.0,0.00016169,2]
[353728244,1739998272202,-447.0,0.00016169,2]
[353728245,1739998272213,-447.0,0.00016169,2]
[353728246,1739998272223,-447.0,0.00016169,2]
[353728247,1739998272233,-447.0,0.00016169,2]
[353728248,1739998272243,-447.0,0.00016169,2]
[353728249,1739998272255,-447.0,0.00016169,2]
[353728250,1739998272265,-447.0,0.00016169,2]
[353728251,1739998272276,-447.0,0.00016169,2]
[353728252,1739998272287,-447.0,0.00016169,2]
[353728253,1739998272298,-447.0,0.00016169,2]
[353728254,1739998272308,-447.0,0.00016169,2]
[353728255,1739998272317,-447.0,0.00016169,2]
[353728256,1739998272327,-447.0,0.00016169,2]
[353728257,1739998272337,-625.0,0.00016169,2]
[353728258,1739998272347,-625.0,0.00016169,2]
[353728259,1739998272357,-625.0,0.00016169,2]
[353728260,1739998272367,-625.0,0.00016169,2]
[353728261,1739998272378,-625.0,0.00016169,2]
[353728262,1739998272388,-625.0,0.00016169,2]
[353728263,1739998272399,-625.0,0.00016169,2]
[353728264,1739998272409,-625.0,0.00016169,2]
[353728265,1739998272419,-625.0,0.00016169,2]
[353728266,1739998272429,-625.0,0.00016169,2]
[353728267,1739998272438,-447.0,0.00016169,2]
[353728268,1739998272448,-447.0,0.00016169,2]
[353728269,1739998272459,-447.0,0.00016169,2]
[353728270,1739998272468,-447.0,0.00016169,2]
[353728271,1739998272478,-447.0,0.00016169,2]
[353728272,1739998272487,-447.0,0.00016169,2]
[353728273,1739998272497,-447.0,0.00016169,2]
[353728274,1739998272507,-447.0,0.00016169,2]
[353728275,1739998272517,-447.0,0.00016169,2]
[353728276,1739998272526,-447.0,0.00016169,2]
[353728277,1739998272536,-625.0,0.00016169,2]
[353728278,1739998272547,-625.0,0.00016169,2]
[353728279,1739998272558,-625.0,0.00016169,2]
[353728280,1739998272568,-625.0,0.00016169,2]
[353728281,1739998272579,-625.0,0.00016169,2]
[353728282,1739998272590,-625.0,0.00016169,2]
[353728283,1739998272601,-625.0,0.00016169,2]
[353728284,1739998272612,-625.0,0.00016169,2]
[353728285,1739998272622,-625.0,0.00016169,2]
[353728286,1739998272632,-625.0,0.00016169,2]
[353728287,1739998272642,-625.0,0.00016169,2]
[353728288,1739998272652,-625.0,0.00016169,2]
[353728289,1739998272662,-447.0,0.00016169,2]
[353728290,1739998272672,-447.0,0.00016169,2]
[353728291,1739998272681,-447.0,0.00016169,2]
[353728292,1739998272691,-447.0,0.00016169,2]
[353728293,1739998272701,-447.0,0.00016169,2]
[353728294,1739998272714,-447.0,0.00016169,2]
[353728295,1739998272724,-447.0,0.00016169,2]
[353728296,1739998272734,-447.0,0.00016169,2]
[353728297,1739998272744,-447.0,0.00016169,2]
[353728298,1739998272754,-625.0,0.00016169,2]
[353728299,1739998272765,-625.0,0.00016169,2]
[353728300,1739998272775,-625.0,0.00016169,2]
[353728301,1739998272785,-625.0,0.00016169,2]
[353728302,1739998272796,-625.0,0.00016169,2]
[353728303,1739998272807,-625.0,0.00016169,2]
[353728304,1739998272818,-625.0,0.00016169,2]
[353728305,1739998272921,-625.0,0.00016169,2]
[353728306,1739998272932,-150.0,0.00016173,2]
[353728307,1739998272942,-1000.0,0.00016438,2]
[353728308,1739998272953,-1000.0,0.00016438,2]
[353728309,1739998272965,-397.53754396,0.00016438,2]
[353728310,1739998272977,-12000.0,0.00016438,2]
[353728311,1739998272987,-27933.97,0.000165,2]
[353728312,1739998272997,-7438.69753278,0.000165,3]
[353728313,1739998273006,-465.00493568,0.00016547,2]
[353728314,1739998273016,-2001.66515834,0.0001662,2]
[353728315,1739998273028,-250.0,0.00016721,2]
[353728316,1739998273039,-153.0000001,0.00016822,2]
[353728317,1739998273050,-153.5365275,0.00016822,2]
[353728318,1739998273063,-557.1188801,0.00016827,2]
[353728319,1739998273074,-557.1188801,0.00016827,2]
[353728320,1739998273085,-600.0,0.00016904,2]
[353728321,1739998273096,-1000.0,0.0001695,2]
[353728322,1739998273107,-502.51143625,0.00016996,2]
[353728323,1739998273118,-500.0,0.00017,7]
[353728324,1739998273129,-500.0,0.00017,7]
[353728325,1739998273140,-500.0,0.00017,7]
[353728326,1739998273151,-500.0,0.00017,7]
[353728327,1739998273162,-500.0,0.00017,7]
[353728328,1739998273174,-500.0,0.00017,7]
[353728329,1739998273185,-500.0,0.00017,7]
[353728330,1739998273196,-500.0,0.00017,7]
[353728331,1739998273208,-500.0,0.00017,7]
[353728332,1739998273219,-566.69,0.00017,7]
[353728333,1739998273231,-1183.40155707,0.00017,2]
[353728334,1739998273240,-558.632578,0.00017123,2]
[353728335,1739998273251,-453.73867444,0.00017268,2]
[353728336,1739998273263,-600.0,0.0001728,2]
[353728337,1739998273275,-168.73426959,0.0001737,2]
[353728338,1739998273286,-153.0,0.00017452,2]
[353728339,1739998273297,-600.0,0.0001746,2]
[353728340,1739998273308,-1000.0,0.000175,2]
[353728341,1739998273319,-499.0,0.00017534,4]
[353728342,1739998273329,-265.108,0.00017569,2]
[353728343,1739998273339,-545.771,0.00017569,2]
[353728344,1739998273350,-1971.0,0.00017569,2]
[353728345,1739998273361,-2288.0,0.00017569,2]
[353728346,1739998273371,-250.0,0.00017569,2]
[353728347,1739998273381,-153.0,0.00017569,2]
[353728348,1739998273393,-1000.0,0.000176,2]
[353728349,1739998273403,-13275.53870192,0.00017619,2]
[353728350,1739998273414,-2843.1019312,0.0001764,2]
[353728351,1739998273424,-193.83841,0.0001764,15]
[353728352,1739998273434,-600.0,0.0001764,2]